Cogmind - Beta 16.1 @@@ ROGUE MODE // 2026.02.21 @ 20:29:39 Player: Switzy Result: Destroyed by G-47 Trooper with Particle Gun Performance ------------- Evolutions (3) 1500 Regions Visited (6) 1200 Robots Destroyed (34) 170 Value Destroyed (1124) 1124 Prototype IDs (4) 80 Alien Tech Used (0) 0 Bonus (200) 200 TOTAL SCORE: 4274 Bonus ------- Pacifist 200 Cogmind --------- Core Integrity 0/700 Matter 254/300 Energy 100/100 System Corruption 4% Temperature Cool (9) Movement Core (100) Ox1 Location -7/Factory Parts ------- > --- POWER (2) -------- (None) > --- PROPULSION (3) --- (None) > --- UTILITY (4) ------ Coolant Injector Visual Processing Unit System Shield > --- WEAPON (4) ------- Maul > --- INVENTORY (5) ---- Disposable Heat Sink Visual Processing Unit Field Laser Peak State ------------ > --- POWER ------------ (None) > --- PROPULSION ------- Carbon-fiber Leg Carbon-fiber Leg Improved Carbon-fiber Leg > --- UTILITY ---------- Improved Cooling System Disposable Heat Sink Visual Processing Unit System Shield > --- WEAPON ----------- Gatling Laser Flak Gun > --- INVENTORY -------- Carbon-fiber Leg Carbon-fiber Leg Disposable Heat Sink Field Laser [Rating: 30] Favorites ----------- Power Improved Deuterium Engine Engine Improved Deuterium Engine Power Core Nuclear Core Propulsion Carbon-fiber Leg Leg Carbon-fiber Leg Hover Unit Backup Propulsion I Flight Unit Flight Unit Utility Power Shielding Device Disposable Heat Sink Processor Visual Processing Unit Hackware System Shield Protection Power Shielding Weapon Particle Cannon Energy Gun Gatling Laser Energy Cannon Particle Cannon Ballistic Gun Autogun Ballistic Cannon Assault Cannon Launcher Grenade Launcher Impact Weapon Mace Build | -11 -10 -10 -9 -9 -8 -7 ------- Run | Yrd Mat Min Mat Min Mat Fac Slots Evolved 6 | . . . 2 . 2 2 Power 1 | . . . . . 1 . Propulsion 1 | . . . . . . 1 Utility 2 | . . . 2 . . . Weapon 2 | . . . . . 1 1 Parts Attached 54 | 5 4 . 6 . 21 18 Power 9 | 1 . . 1 . 6 1 Engine 6 | 1 . . 1 . 3 1 Core 3 | . . . . . 3 . Reactor . | . . . . . . . Propulsion 16 | 2 2 . 1 . 5 6 Treads . | . . . . . . . Leg 12 | 2 . . 1 . 3 6 Wheel . | . . . . . . . Hover 2 | . . . . . 2 . Flight 2 | . 2 . . . . . Utility 12 | . 2 . 2 . 4 4 Device 6 | . . . . . 3 3 Storage . | . . . . . . . Processor 2 | . . . 1 . . 1 Hackware 2 | . . . 1 . 1 . Protection 2 | . 2 . . . . . Artifact . | . . . . . . . Weapon 17 | 2 . . 2 . 6 7 Energy Gun 5 | 1 . . . . 2 2 Energy Cannon 1 | . . . 1 . . . Ballistic Gun 4 | 1 . . . . 2 1 Ballistic Cannon 3 | . . . . . 2 1 Launcher 2 | . . . 1 . . 1 Special Weapon . | . . . . . . . Impact Weapon 2 | . . . . . . 2 Slashing Weapon . | . . . . . . . Piercing Weapon . | . . . . . . . Special Melee Weapon . | . . . . . . . Unidentified Prototypes 1 | . . . . . . 1 Parts Lost 43 | . 4 . . . 22 17 Power 7 | . 1 . . . 4 2 Propulsion 15 | . 1 . . . 6 8 Utility 6 | . . . . . 5 1 Weapon 15 | . 2 . . . 7 6 Highest Loss Streak 9 | . 3 . . . 9 7 To Critical Strikes . | . . . . . . . Average Backups 2 | . 2 3 3 3 2 2 Power . | . . 1 1 1 . . Propulsion 1 | . 1 2 1 2 1 . Utility . | . . . . . . 1 Weapon . | . . . . . . 1 Tool/Special . | . . . . . . . Unused Backups 1 | . . . . . . 1 Power . | . . . . . . . Propulsion . | . . . . . . . Utility 1 | . . . . . . 1 Weapon . | . . . . . . . Tool/Special . | . . . . . . . Average Slot Usage (%) 67 | . 83 42 79 100 80 53 Engine 7 | . 13 . 11 11 5 5 Core 1 | . . . . . 4 . Leg 9 | . 7 . 6 22 12 9 Hover 2 | . . . . . 1 3 Flight 2 | . 12 14 8 . . . Device 5 | . . . . . 11 6 Processor 6 | . . . 6 11 9 7 Hackware 4 | . . . 6 11 2 7 Protection 8 | . 23 28 22 22 8 . Energy Gun 3 | . 10 . . . 4 2 Energy Cannon 2 | . . . 10 11 4 . Ballistic Gun 4 | . 13 . . . 9 . Ballistic Cannon 1 | . . . . . 5 . Launcher 1 | . . . 9 11 . . Impact Weapon 3 | . . . . . . 7 Peak Build Rating 30 | 5 7 3 14 14 25 30 Average Rating 15 | 3 6 3 10 14 18 18 On Entrance 7 | . 5 3 3 14 14 10 Avg Prop Armor Cover (%) 11 | . 10 . . . . 12 Naked Turns . | . . . . . . . Heaviest Build 30 | 7 9 2 14 14 30 23 Greatest Support 48 | 20 20 4 23 23 23 48 Greatest Overweight (x) 6 | . 2 . 3 . 6 4 Average Overweight (x) . | . . . 1 . . . Largest Inventory Capacity 5 | 5 5 5 5 5 5 5 Average Capacity 5 | 5 5 5 5 5 5 5 Most Carried 5 | 3 4 5 5 3 5 5 Average Carried 2 | . 2 3 3 3 2 2 Final Capacity 5 | 5 5 5 5 5 5 5 Final Carried 5 | . 3 5 3 3 3 3 Class Distribution -------------------- 76% | Mutant 14% | Skirmisher 4% | Gunner 4% | Tank Dominant Class ---------------- Mutant | -10/Materials Mutant | -10/Mines Mutant | -9/Materials Mutant | -9/Mines Skirmisher | -8/Materials Mutant | -7/Factory Resources | -11 -10 -10 -9 -9 -8 -7 ----------- Run | Yrd Mat Min Mat Min Mat Fac Matter Collected 991 | 168 . 31 51 . 572 169 Remotely . | . . . . . . . Salvage Created 1046 | . . . 51 . 594 401 Parts 63 | . . . 5 . 38 20 Haulers Intercepted . | . . . . . . . Recyclers Shooed . | . . . . . . . Parts Field Recycled . | . . . . . . . Retrieved Matter . | . . . . . . . Parts Self-Destructed . | . . . . . . . Prevented . | . . . . . . . Parts Restored . | . . . . . . . Kills | -11 -10 -10 -9 -9 -8 -7 ------- Run | Yrd Mat Min Mat Min Mat Fac Combat Hostiles Destroyed 29 | . . . 2 . 16 11 Melee 4 | . . . . . . 4 Guns 7 | . . . . . 4 3 Cannons 12 | . . . 2 . 9 1 AOE 4 | . . . . . 3 1 Classes Destroyed 8 | . . . 2 . 3 3 Worker 2 | . . . . . . 2 Builder 1 | . . . . . 1 . Watcher 2 | . . . . . 1 1 Swarmer 11 | . . . 1 . 6 4 Grunt 9 | . . . 1 . 5 3 Duelist 1 | . . . . . . 1 Sentry 6 | . . . . . 5 1 Programmer 2 | . . . . . . 2 Best Kill Streak 7 | . . . 1 . 5 7 Combat Bots Only 5 | . . . 1 . 5 4 Max Kills in Single Turn 2 | . . . 1 . 2 1 Gunslinging . | . . . . . . . Exploded 2 | . . . . . 2 1 Melee 1 | . . . . . . 1 Uniques/NPCs Destroyed . | . . . . . . . Combat | -11 -10 -10 -9 -9 -8 -7 -------- Run | Yrd Mat Min Mat Min Mat Fac Hostile Shots Fired 543 | . 35 7 13 . 184 304 Missed 167 | . 10 3 5 . 38 111 Hits 376 | . 25 4 8 . 146 193 Melee 11 | . . . . . . 11 Projectile 365 | . 25 4 8 . 146 182 Critical Strikes 21 | . 1 . . . 9 11 Actively Blocked 1 | . . . . . 1 . Part Disruptions 1 | . . . . . . 1 Damage Taken 5130 | . 322 55 106 . 2179 2468 Core 1308 | . 40 55 18 . 485 710 Absorbed by Shields . | . . . . . . . Redirected to Shielding 93 | . 19 . 2 . 72 . Core Remaining (%) 67 | 100 . 62 . 95 11 . Volleys Fired 108 | . 11 . 16 . 50 31 Largest 3 | . 1 . 1 . 3 2 Hottest 154 | . 20 . 68 . 154 108 Shots Fired 160 | . 11 . 16 . 100 33 Gun 89 | . 11 . . . 55 23 Cannon 63 | . . . 12 . 42 9 Launcher 8 | . . . 4 . 3 1 Special . | . . . . . . . Kinetic 74 | . 11 . . . 52 11 Thermal 72 | . . . 12 . 39 21 Explosive 8 | . . . 4 . 3 1 Electromagnetic 6 | . . . . . 6 . Robot Hit Streak 12 | . 4 . 5 . 10 12 Robot Miss Streak 6 | . 1 . 2 . 6 3 Penetration Max . | . . . . . . . Secondary Targets . | . . . . . . . Shots Hit Robots 113 | . 7 . 7 . 55 44 Core Hits 64 | . 1 . 2 . 36 25 Critical Kills 2 | . . . . . . 2 Critical Parts Destroyed 2 | . . . . . . 2 Critical Strikes 8 | . . . . . 3 5 Burn 3 | . . . . . 2 1 Corrupt 1 | . . . . . 1 . Smash 4 | . . . . . . 4 Melee Attacks 27 | . . . . . . 27 Impact 27 | . . . . . . 27 Slashing . | . . . . . . . Piercing . | . . . . . . . Sneak Attacks 1 | . . . . . . 1 Combat Hostiles . | . . . . . . . Follow-up Attacks 5 | . . . . . . 5 Damage Inflicted 2725 | . 94 . 143 . 1087 1401 Guns 949 | . 94 . . . 463 392 Cannons 837 | . . . 143 . 452 242 Explosions 241 | . . . . . 172 69 Melee 698 | . . . . . . 698 Ramming . | . . . . . . . Kinetic 798 | . 94 . . . 412 292 Thermal 913 | . . . 143 . 428 342 Explosive 241 | . . . . . 172 69 Electromagnetic 75 | . . . . . 75 . Impact 698 | . . . . . . 698 Slashing . | . . . . . . . Piercing . | . . . . . . . Highest Corruption 4 | . . . . . . 4 Average Corruption 3 | . . . . . . 3 Corruption Purged . | . . . . . . . Corruption Blocked . | . . . . . . . Effects 15 | . . . . . . 15 Message Errors 6 | . . . . . . 6 Matter Fused 2 | . . . . . . 2 Heat Flow Errors 1 | . . . . . . 1 Energy Discharges 2 | . . . . . . 2 Data Loss (minor) 3 | . . . . . . 3 Alerts 1 | . . . . . . 1 Overload Shots . | . . . . . . . Overflow Damage 243 | . . . . . 12 231 Projectiles 28 | . . . . . . 28 Explosions 12 | . . . . . 12 . Melee 203 | . . . . . . 203 Knockbacks 20 | . . . . . 9 11 Impact 1 | . . . . . . 1 Kinetic 17 | . . . . . 9 8 Secondary 2 | . . . . . . 2 Self-Inflicted Damage 31 | . . . 31 . . . Shots 1 | . . . 1 . . . Rammed . | . . . . . . . Targets Rammed . | . . . . . . . Kicked . | . . . . . . . Crushed . | . . . . . . . Highest Temperature 480 | . 8 . 156 . 480 186 Average Temperature 112 | . 8 . 51 . 145 38 Received Heat Transfer 2052 | . 201 30 18 . 1053 750 Effects 7 | . . . . . 7 . Energy Bleed 2 | . . . . . 2 . Interference 1 | . . . . . 1 . Short Circuit 2 | . . . . . 2 . Damage (major) 2 | . . . . . 2 . Siege Activations . | . . . . . . . Martial Activations . | . . . . . . . Shielding Activations . | . . . . . . . Robots Disrupted . | . . . . . . . Combat Hostiles . | . . . . . . . Robots Corrupted 3 | . . . . . . 3 Combat Hostiles 2 | . . . . . . 2 Parts Fried 3 | . . . . . . 3 Impact Corruptions 15 | . . . . . . 15 Robots Melted . | . . . . . . . Combat Hostiles . | . . . . . . . Parts Melted 1 | . . . . . . 1 Heat Transferred 2014 | . . . 259 . 999 756 Parts Sabotaged . | . . . . . . . Parts Stolen . | . . . . . . . Parts Stripped . | . . . . . . . Power Chain Reactions . | . . . . . . . Alert | -11 -10 -10 -9 -9 -8 -7 ------- Run | Yrd Mat Min Mat Min Mat Fac Maximum Alert Level . | . . . . . . . Low Security (%) 100 | 100 100 100 100 100 100 100 Level 1 . | . . . . . . . Level 2 . | . . . . . . . Level 3 . | . . . . . . . Level 4 . | . . . . . . . Level 5 . | . . . . . . . High Security . | . . . . . . . Max Security . | . . . . . . . Peak Influence 179 | . 30 30 30 8 179 126 Initial 8 | . . . 7 8 . . Average 34 | . 2 6 3 4 65 33 Influence Increases 1200 | . 31 30 94 . 595 450 Destroy 0b10 Robot/C 580 | . . . 40 . 320 220 Destroy 0b10 Robot/NC 25 | . . . . . 10 15 Destroy Leader 154 | . . . 10 . 82 62 Successful Hack 43 | . . . 5 . 26 12 Disable Machine 45 | . . . 15 . 15 15 Destroy Structure 53 | . 1 . 24 . 22 6 Partial Spotted 15 | . . . . . 15 . Lose Combat Pursuer 285 | . 30 30 . . 105 120 Influence Decreases 1130 | . 31 10 92 22 595 380 Entered New Map 27 | . . . 13 14 . . Time Decay 799 | . 30 10 79 8 392 280 Lost Part 304 | . 1 . . . 203 100 Squads Dispatched 6 | . 1 . . . 2 3 Investigation 1 | . . . . . 1 . Extermination 2 | . . . . . . 2 Reinforcement 2 | . 1 . . . 1 . Assault . | . . . . . . . Garrison 1 | . . . . . . 1 Intercept . | . . . . . . . Searches Triggered . | . . . . . . . Construction Impeded . | . . . . . . . Haulers Reinforced . | . . . . . . . Active Scanning Responses . | . . . . . . . Cargo Convoy Interrupts . | . . . . . . . Stealth | -11 -10 -10 -9 -9 -8 -7 --------- Run | Yrd Mat Min Mat Min Mat Fac Distress Signals 3 | . 1 . . . 1 1 Communications Jammed . | . . . . . . . Distress Signals . | . . . . . . . Times Spotted 78 | . 9 2 6 . 34 27 Peak Tracking Total 7 | . 4 2 3 . 7 4 Tactical Retreats 14 | . 1 1 . . 6 6 Traps | -11 -10 -10 -9 -9 -8 -7 ------- Run | Yrd Mat Min Mat Min Mat Fac Traps Triggered . | . . . . . . . Indirectly . | . . . . . . . Trap Hack Attempts . | . . . . . . . Triggered . | . . . . . . . Disarmed . | . . . . . . . Reprogrammed . | . . . . . . . Reused . | . . . . . . . Traps Extracted . | . . . . . . . Installed . | . . . . . . . Triggered . | . . . . . . . Machines | -11 -10 -10 -9 -9 -8 -7 ---------- Run | Yrd Mat Min Mat Min Mat Fac Machines Disabled 3 | . . . 1 . 1 1 Max in Single Turn 1 | . . . 1 . 1 1 Machines Repaired . | . . . . . . . Machines Dismantled . | . . . . . . . Machines Sabotaged . | . . . . . . . Overloaded Fab Kills . | . . . . . . . Hacking | -11 -10 -10 -9 -9 -8 -7 --------- Run | Yrd Mat Min Mat Min Mat Fac Machines Accessed 11 | . . 1 3 . 3 4 Terminals 9 | . . 1 3 . 3 2 Fabricators 1 | . . . . . . 1 Repair Stations 1 | . . . . . . 1 Recycling Units . | . . . . . . . Scanalyzers . | . . . . . . . Garrison Access . | . . . . . . . Total Hacks 32 | . . 1 9 . 12 10 Successful 14 | . . . 5 . 5 4 Failed 18 | . . 1 4 . 7 6 Catastrophic 1 | . . 1 . . . . Database Lockouts . | . . . . . . . Manual . | . . . . . . . Terminals 27 | . . 1 9 . 12 5 Fabricators 2 | . . . . . . 2 Repair Stations 3 | . . . . . . 3 Recycling Units . | . . . . . . . Scanalyzers . | . . . . . . . Garrison Access . | . . . . . . . Terminal Hacks 12 | . . . 5 . 5 2 Record 4 | . . . 2 . 1 1 Prototype ID Bank 1 | . . . . . 1 . Open DSF 1 | . . . . . . 1 Branch Access Points 1 | . . . . . 1 . Emergency Access Points 1 | . . . . . 1 . Terminal Index 1 | . . . 1 . . . Alert Level 1 | . . . 1 . . . Zone Layout 2 | . . . 1 . 1 . Fabricator Hacks 1 | . . . . . . 1 Network Status 1 | . . . . . . 1 Repair Station Hacks 1 | . . . . . . 1 Refit 1 | . . . . . . 1 Recycling Unit Hacks . | . . . . . . . Scanalyzer . | . . . . . . . Garrison Access Hacks . | . . . . . . . Unauthorized Hacks . | . . . . . . . Terminals . | . . . . . . . Fabricators . | . . . . . . . Repair Stations . | . . . . . . . Recycling Units . | . . . . . . . Scanalyzers . | . . . . . . . Garrison Access . | . . . . . . . Data Cores Recovered . | . . . . . . . Used . | . . . . . . . Hacking Detections 8 | . . 1 2 . 3 2 Full Trace Events 1 | . . . . . 1 . Feedback Events . | . . . . . . . Feedback Blocked . | . . . . . . . Robot Schematics Acquired . | . . . . . . . Robots Built . | . . . . . . . Authchips . | . . . . . . . Time . | . . . . . . . Total Robot Build Rating . | . . . . . . . Part Schematics Acquired . | . . . . . . . Parts Built . | . . . . . . . Authchips . | . . . . . . . Time . | . . . . . . . Total Part Build Rating . | . . . . . . . Part Studies Acquired . | . . . . . . . Parts Repaired . | . . . . . . . Time . | . . . . . . . Parts Recycled . | . . . . . . . Recycled Matter . | . . . . . . . Retrieved Matter . | . . . . . . . Retrieved Components . | . . . . . . . Parts Scanalyzed . | . . . . . . . Part Schematics Acquired . | . . . . . . . Parts Damaged . | . . . . . . . Bothacking | -11 -10 -10 -9 -9 -8 -7 ------------ Run | Yrd Mat Min Mat Min Mat Fac Used RIF Installer . | . . . . . . . Robots Hacked . | . . . . . . . Non-combat . | . . . . . . . Combat . | . . . . . . . Robot Hacks Applied . | . . . . . . . Relay Couplers Released . | . . . . . . . Fabnet Peak Effective % . | . . . . . . . Robots Rewired . | . . . . . . . Allies Hacked . | . . . . . . . Hacks Repelled . | . . . . . . . Allies | -11 -10 -10 -9 -9 -8 -7 -------- Run | Yrd Mat Min Mat Min Mat Fac Total Allies . | . . . . . . . Largest Group . | . . . . . . . Highest-Rated Group . | . . . . . . . Highest-Rated Ally . | . . . . . . . Total Orders . | . . . . . . . Ally Attacks . | . . . . . . . Total Damage . | . . . . . . . Kills . | . . . . . . . Allies Corrupted . | . . . . . . . Allies Melted . | . . . . . . . Intel | -11 -10 -10 -9 -9 -8 -7 ------- Run | Yrd Mat Min Mat Min Mat Fac Active Infowar (turns) 2112 | . . . . . 506 1606 Optics 1606 | . . . . . . 1606 Sensors 506 | . . . . . 506 . Robot Analysis Total . | . . . . . . . Derelict Logs Recovered . | . . . . . . . Drone Launches . | . . . . . . . Drone Recoveries . | . . . . . . . Exploration | -11 -10 -10 -9 -9 -8 -7 ------------- Run | Yrd Mat Min Mat Min Mat Fac Turns Passed 3636 | 43 398 65 425 36 1047 1622 Spaces Moved 2038 | 34 181 136 190 31 500 966 Core 149 | 10 . . . . 27 112 Treads . | . . . . . . . Legs 1249 | 24 57 . 84 31 395 658 Wheels . | . . . . . . . Hover 274 | . . . . . 78 196 Flight 366 | . 124 136 106 . . . Fastest Speed 34 | 50 34 40 120 120 56 56 Average Speed 134 | 99 109 40 183 120 147 137 Slowest Speed 350 | 120 210 40 280 120 350 320 Overloaded Moves . | . . . . . . . Propulsion Burnouts . | . . . . . . . Robots Hopped 1 | . 1 . . . . . Potential Cave-ins . | . . . . . . . Cave-ins Triggered . | . . . . . . . Exploration Rate (%) 23 | 4 37 34 19 15 32 20 Regions Visited 6 Branch Regions 2 Pre-discovered Areas 1 | . . . . 1 . . Known Exits Taken 2 | . . . 1 1 . . Unknown Exits Taken 4 | 1 1 1 . . 1 . Scrap Searched 1 | . . 1 . . . . Spaces Dug 9 | . . . 3 . . 6 Terrain Destroyed 66 | . . . 27 . 33 6 Melee . | . . . . . . . Projectile 4 | . . . . . 4 . AOE 62 | . . . 27 . 29 6 Terrain Rammed . | . . . . . . . Walls Destroyed . | . . . . . . . Machines Disabled . | . . . . . . . Actions | -11 -10 -10 -9 -9 -8 -7 --------- Run | Yrd Mat Min Mat Min Mat Fac Total 2748 | 43 369 145 250 30 728 1183 Wait 455 | . 168 8 31 . 123 125 Move 2030 | 33 178 135 189 30 499 966 Hop 1 | . 1 . . . . . Pick Up 57 | 5 5 2 5 . 23 17 Fast Attach 2 | . . . . . 1 1 Attach 54 | 5 4 . 7 . 21 17 Detach 2 | . 2 . . . . . Swap 7 | . . . 1 . 5 1 Drop 10 | . . . 1 . 6 3 Fire 108 | . 11 . 16 . 50 31 Melee 22 | . . . . . . 22 Ram . | . . . . . . . Kick . | . . . . . . . Crush . | . . . . . . . Escape Stasis . | . . . . . . . Rewire . | . . . . . . . Trap . | . . . . . . . Miscellaneous . | . . . . . . . Route ------- -11/Scrapyard -10/Materials -10/Mines -9/Materials -9/Mines -8/Materials -7/Factory History --------- Turn | Location | Event 7 | -11/Scrapyard | Discovered new exit (range 15) 44 | -11/Scrapyard | Entered Materials 312 | -10/Materials | Build established: Mutant 438 | -10/Materials | Discovered new exit (range 10) 442 | -10/Materials | Entered Mines 461 | -10/Mines | Lost 3 parts (1p1n1w) 501 | -10/Mines | Discovered new exit (range 10) 507 | -10/Mines | Entered Materials 507 | -9/Materials | Evolved 2 slots: Utility x2 862 | -9/Materials | Discovered new exit (range 14) 883 | -9/Materials | Identified exit to Mines 932 | -9/Materials | Entered Mines 954 | -9/Mines | Discovered new exit (range 14) 962 | -9/Mines | Learned location of Storage (-7) 966 | -9/Mines | Identified exit to Materials 968 | -9/Mines | Entered Materials 968 | -8/Materials | Evolved 2 slots: Power x1, Weapon x1 1382 | -8/Materials | Build established: Skirmisher 1657 | -8/Materials | Lost 9 parts (1p2n3u3w) 1673 | -8/Materials | Core integrity fell below 50% 2008 | -8/Materials | Discovered new exit (range 7) 2013 | -8/Materials | Core integrity fell below 20% 2015 | -8/Materials | Entered Factory 2015 | -7/Factory | Evolved 2 slots: Propulsion x1, Weapon x1 2043 | -7/Factory | Lost 7 parts (2p2n3w) 2267 | -7/Factory | Build established: Mutant 2707 | -7/Factory | Lost 3 parts (2n1w) 2980 | -7/Factory | Core integrity fell below 50% 3575 | -7/Factory | Core integrity fell below 20% 3586 | -7/Factory | Garrison activated, responded to threat 3637 | -7/Factory | Destroyed by G-47 Trooper with Particle Gun Last Messages --------------- 03586_ W-25 Informer calls for garrison support. 03586_ ALERT: Activating Garrison Access F003. 03588_ W-25 Informer knocked back. 03592_ Backup Power I destroyed. 03592_ Mace destroyed. 03595_ Y-54 Guardian destroyed. 03596_ K-01 Serf collects debris. 03597_ W-25 Informer sends out distress signal. 03600_ K-01 Serf collects debris. 03602_ K-01 Serf knocked back. 03607_ Acquired 22 matter. 03608_ Flak Cannon destroyed. 03617_ System corrupted: IFF burst signal emitted. 03624_ Acquired Imp. Grenade Launcher. 03632_ Assembly Bed disabled. 03632_ G-47 Trooper destroyed. 03633_ Imp. Grenade Launcher destroyed. 03635_ Y-54 Guardian suffers critical hit (Burn). Map ----- +----------------------------------------------------+ | ????????????????????????????????????????????? | | ????????????????????????????????????????????? | | ????????????????????????????????????????????? | | ????????????????????????????????????????????? | | ????????????????????????????????????????????? | | ????????????????????????????????????????????? | | ????????????????????????????????????????????? | | ????????????????????????????????????????????? | | ????????????????????????????????????????????? | | ????????????????????????????????????????????? | | ????????????????????????????????????????????? | | ??????####################??????????????????? | | ??????# #??????????????????? | | ??????# #??????????????????? | | ??????# #??????????????????? | | ??????# == #??????????????????? | | ??????# == #??????????????????? | | ??????# = #??????????????????? | | ??????# #??????????????????? | | ??????# #??????????????????? | | #############+##+#########??????????????????? | | # # ################????????? | | # !] [ "" # # #????????? | | # !] """ # # """"" #????????? | | # ] R" # # """" #????????? | | # """ + @ """ #????????? | | # """ # # = """"" #????????? | | # """ ! # # Y % #????????? | | #! """ ! # #### g #####????????? | | ? ! # # == #??????????? | | # ########### # #??????????? | | ??### #?????# # #??????????? | | ?? ?????# # #??????????? | | ??" ????# # #??????????? | | ??""" ????# + #??????????? | | #?G ???# # #??????????? | | # """ ???# # #??????????? | | # " ??# # #??????????? | | # ??# # #??????????? | | # ?# # #??????????? | | # ?# # #??????????? | | # # ##############??????????? | | # //] # #############???????????? | | # /!] / # ! ! ############# | | # /] # # # | | ???########## # # """ | | ??? # # " " " " " # "R | | ??""""""""" # # " " " " " # """ | | ??? # # " " " " " # | | ??""""""""" # # " " " " " # """"" | +----------------------------------------------------+ Best States ------------- Heat Dissipation 61 Coolant Potential 100 Energy Generation 23 Energy Capacity 415 Matter Stores 300 Matter Capacity 300 Sight Range 18 Robot Scan Range 15 Terrain Scan Density 10 Power Shielding 33 Evasion (%) 63 Defensive Hacking 10 Authchip Count 1 Item Schematics ----------------- None Robot Schematics ------------------ None Fabricated ------------ Nothing Repaired ---------- Nothing Studied --------- None Alien Tech Used ----------------- None Achievements -------------- Fitting Room Novice Programmer Organ Harvest Overwhelming Resistances Are Futile Spot Them First That Tickles Challenges ------------ None Game ------ Seed CoilSupersonicFilter Manual? 0 Play Time 00:50:01 Cumulative 8.4 hours Start 2026.02.21 @ 16:32:41 End 2026.02.21 @ 20:29:39 Sessions 1 Manual Loads 0 Difficulty Rogue Special Mode None Game No. 19 Rogue 17 Adventurer 2 Explorer 0 Win Type - Total 0 Types 0/0/0/0/0/0/0/0/0/0 Lore% 3 Gallery% 13 Achievement% 8 Wizard Run 0 Options --------- Layout 2 ASCII 0 Keyboard 0 Movement Mouse Keybinds 0 Fullscreen 1 Font 48/Smallcaps Map View 50x44 Zoom Use 0% Tactical HUD 1 Map Filters NONE Filters NONE Steam 1 RUN: c3c24aad-c587-4d77-9c1f-a5152442e791